bitfinex/quotes_SOLUSD_20250111
["timestamp","ask_amount","ask_price","bid_price","bid_amount"]
[1736571900180,9.01412538,186.0,185.96,20.0]
[1736571900496,1.00799418,186.05,185.96,20.0]
[1736571900497,9.01412538,186.01,185.96,20.0]
[1736571900996,9.01412538,186.02,185.98,20.0]
[1736571903594,1.5686,186.07,186.0,20.0]
[1736571903764,9.01412538,186.05,186.01,20.0]
[1736571905961,9.01412538,186.05,186.02,20.0]
[1736571914301,1.5985,186.11,186.04,20.0]
[1736571914494,9.01412538,186.1,186.05,20.0]
[1736571914989,9.01412538,186.09,186.05,20.0]
[1736571915769,9.01412538,186.09,186.06,20.0]
[1736571915975,9.01412538,186.1,186.06,20.0]
[1736571916270,9.01412538,186.12,186.08,20.0]
[1736571916471,9.01412538,186.13,186.08,20.0]
[1736571916773,9.01412538,186.12,186.08,20.0]
[1736571917171,9.01412538,186.11,186.08,20.0]
[1736571917366,23.776884,186.15,186.06,20.0]
[1736571917592,9.01412538,186.07,186.01,137.1668]
[1736571917772,9.01412538,186.03,186.0,6.6167]
[1736571918184,1.6377,186.1,186.03,20.0]
[1736571918382,1.00779319,186.12,186.03,20.0]
[1736571918599,9.01412538,186.07,186.03,20.0]
[1736571918792,9.01412538,186.08,186.03,20.0]
[1736571918989,1.00779319,186.12,186.05,20.0]
[1736571919194,9.01412538,186.09,186.05,20.0]
[1736571919496,9.01412538,186.1,186.05,20.0]
[1736571920386,9.01412538,186.11,186.07,20.0]
[1736571921109,9.01412538,186.1,186.07,20.0]
[1736571922400,9.01412538,186.11,186.07,20.0]
[1736571924304,9.01412538,186.13,186.09,20.0]
[1736571925313,2.54476218,186.19,186.09,20.0]
[1736571925487,1.5375,186.19,186.1,0.40741018]
[1736571925800,9.01412538,186.14,186.11,20.0]
[1736571927380,9.01412538,186.15,186.11,20.0]
[1736571928078,9.01412538,186.13,186.1,20.0]
[1736571928400,9.01412538,186.14,186.1,20.0]
[1736571932594,9.01412538,186.15,186.1,20.0]
[1736571932904,1.00708934,186.18,186.1,20.0]
[1736571933094,9.01412538,186.15,186.1,20.0]
[1736571937811,9.01412538,186.16,186.1,20.0]
[1736571938015,1.00725042,186.18,186.1,20.0]
[1736571938214,1.00725042,186.21,186.12,20.0]
[1736571938510,9.01412538,186.17,186.12,20.0]
[1736571941792,1.5375,186.23,186.12,50.40709315]
[1736571941991,9.01412538,186.18,186.12,50.40709315]
[1736571945527,1.5375,186.23,186.12,50.40709315]
[1736571945708,9.01412538,186.19,186.12,50.40709315]
[1736571946826,9.01412538,186.18,186.12,50.40709315]
[1736571947529,9.01412538,186.16,186.13,20.0]
[1736571947727,9.01412538,186.15,186.13,20.0]
[1736571948031,9.01412538,186.14,186.07,137.1891]
[1736571948227,9.01412538,186.11,186.07,6.1291]
[1736571948526,9.01412538,186.09,186.06,54.8555]
[1736571948739,9.01412538,186.09,186.08,20.0]
[1736571949325,9.01412538,186.09,186.06,54.8555]
[1736571949632,9.01412538,186.08,186.06,48.4]
[1736571950630,1.00757454,186.15,186.06,48.4]
[1736571950631,9.01412538,186.1,186.09,20.0]
[1736571951731,1.00757454,186.15,186.09,20.0]
[1736571951929,1.6173,186.17,186.09,20.0]
[1736571952117,9.01412538,186.14,186.09,20.0]
[1736571958948,9.01412538,186.13,186.09,20.0]
[1736571962730,9.01412538,186.1,186.03,253.0291]
[1736571963062,9.01412538,186.1,186.06,20.0]
[1736571965153,9.01412538,186.07,186.01,54.5701]
[1736571965338,1.00777108,186.1,186.01,54.5701]
[1736571965653,9.01412538,186.07,186.01,54.5701]
[1736571965854,9.01412538,186.08,186.04,20.0]
[1736571966735,9.01412538,186.11,186.06,20.0]
[1736571967049,9.01412538,186.12,186.06,20.0]
[1736571967261,9.01412538,186.13,186.08,20.0]
[1736571967954,2.62466065,186.17,186.08,20.0]
[1736571968253,9.01412538,186.13,186.08,20.0]
[1736571968770,9.01412538,186.11,186.07,20.0]
[1736571968951,2.62466065,186.17,186.04,149.0379]
[1736571969142,9.01412538,186.12,186.07,20.0]
[1736571969334,2.62466065,186.17,186.07,20.0]
[1736571969539,9.01412538,186.12,186.08,20.0]
[1736571974936,9.01412538,186.11,186.08,20.0]
[1736571975769,9.01412538,186.09,186.01,244.82136108]
[1736571975974,9.01412538,186.05,186.01,8.31126108]
[1736571976145,9.01412538,186.05,186.0,8.31126108]
[1736571976884,1.00772993,186.08,186.03,20.0]
[1736571977050,9.01412538,186.07,186.03,20.0]
[1736571977671,9.01412538,186.07,186.02,20.0]
[1736571978799,9.01412538,186.08,186.02,20.0]
[1736571978958,2.6204221,186.1,186.02,20.0]
[1736571979293,9.01412538,186.09,186.04,20.0]
[1736571979778,9.01412538,186.07,186.03,20.0]
[1736571979950,9.01412538,186.06,186.03,20.0]
[1736571980162,9.01412538,186.07,186.02,20.0]
[1736571982360,9.01412538,186.06,186.02,20.0]
[1736571983582,1.00768796,186.11,186.02,20.0]
[1736571983886,9.01412538,186.07,186.02,20.0]
[1736571984198,9.01412538,186.06,186.02,20.0]
[1736571984369,9.01412538,186.04,185.99,1.539]
[1736571984890,9.01412538,186.04,186.0,20.0]
[1736571985090,9.01412538,186.03,185.97,19.4437]
[1736571985265,9.01412538,186.03,185.97,10.5408]
[1736571985798,9.01412538,186.03,186.0,20.0]
[1736571985964,9.01412538,186.02,186.0,20.0]
[1736571986161,9.01412538,186.03,186.0,20.0]
[1736571986385,9.01412538,186.04,186.0,20.0]
[1736571987067,9.01412538,186.03,186.0,20.0]
[1736571987264,9.01412538,186.01,186.0,20.0]
[1736571987487,9.01412538,186.01,185.98,24.54]
[1736571987677,9.01412538,186.0,185.98,20.0]
[1736571988589,9.01412538,186.01,185.98,20.0]
[1736571989684,9.01412538,186.0,185.98,20.0]
[1736571991794,9.01412538,185.99,185.98,20.0]
[1736571994688,9.01412538,185.99,185.96,20.0]
[1736571994874,9.01412538,185.99,185.95,20.0]
[1736571996484,9.01412538,186.02,185.95,20.0]
[1736571996686,9.01412538,186.02,185.97,20.0]
[1736571997614,9.01412538,186.01,185.97,20.0]
[1736572000705,1.00796272,186.06,185.92,10.7027]
[1736572000706,9.01412538,185.99,185.92,146.3027]
[1736572001010,9.01412538,185.96,185.9,141.7338]
[1736572001173,2.56578744,186.01,185.91,0.25098]
[1736572001377,1.00821084,186.04,185.95,20.0]
[1736572001610,9.01412538,186.02,185.97,20.0]
[1736572002632,9.01412538,186.02,185.98,20.0]
[1736572002797,9.01412538,186.05,186.0,20.0]
[1736572003524,9.01412538,186.04,186.0,20.0]
[1736572004592,9.01412538,186.04,186.01,5.381]
[1736572004800,9.01412538,186.03,186.0,20.0]
[1736572005599,9.01412538,186.04,186.0,20.0]
[1736572006427,1.00783954,186.1,186.01,20.0]
[1736572006640,9.01412538,186.07,186.01,20.0]
[1736572007333,9.01412538,186.06,186.01,20.0]
[1736572008435,1.6372,186.11,186.05,20.0]
[1736572008600,9.01412538,186.11,186.07,20.0]
[1736572011137,9.01412538,186.09,186.05,20.0]
[1736572011439,9.01412538,186.11,186.07,20.0]
[1736572012337,9.01412538,186.14,186.07,50.0]
[1736572013731,9.01412538,186.15,186.07,50.0]
[1736572014336,9.01412538,186.15,186.08,0.40745411]
[1736572014535,9.01412538,186.15,186.07,50.40745607]
[1736572014828,9.01412538,186.15,186.1,20.0]
[1736572016036,9.01412538,186.14,186.1,20.0]
[1736572020137,9.01412538,186.15,186.1,20.0]
[1736572020313,9.01412538,186.16,186.12,20.0]
[1736572021742,9.01412538,186.15,186.12,20.0]
[1736572022116,9.01412538,186.14,186.12,20.0]
[1736572022615,9.01412538,186.13,186.12,20.0]
[1736572022815,9.01412538,186.13,186.1,20.0]
[1736572023141,9.01412538,186.12,186.1,20.0]
[1736572024249,9.01412538,186.13,186.1,20.0]
[1736572025148,9.01412538,186.15,186.11,20.0]
[1736572027826,9.01412538,186.14,186.11,20.0]
[1736572029352,9.01412538,186.13,186.11,20.0]
[1736572029732,9.01412538,186.12,186.08,20.0]
[1736572032457,9.01412538,186.1,186.08,20.0]
[1736572032958,9.01412538,186.12,186.08,20.0]
[1736572034335,9.01412538,186.13,186.09,20.0]
[1736572034859,9.01412538,186.12,186.09,20.0]
[1736572035955,9.01412538,186.11,186.09,20.0]
[1736572036757,9.01412538,186.1,186.09,20.0]
[1736572038555,9.01412538,186.1,186.08,20.0]
[1736572038731,9.01412538,186.11,186.08,20.0]
[1736572039159,9.01412538,186.12,186.08,20.0]
[1736572041137,9.01412538,186.11,186.08,20.0]
[1736572043363,9.01412538,186.09,186.08,20.0]
[1736572047667,9.01412538,186.09,186.05,20.0]
[1736572047867,9.01412538,186.06,186.01,4.54]
[1736572048065,9.01412538,186.06,186.03,20.0]
[1736572048772,9.01412538,186.07,186.03,20.0]
[1736572049672,1.00770412,186.11,186.03,20.0]
[1736572049883,9.01412538,186.07,186.03,20.0]
[1736572052380,9.01412538,186.06,186.03,20.0]
[1736572053177,9.01412538,186.08,186.04,20.0]
[1736572054857,9.01412538,186.07,186.04,20.0]
[1736572055687,9.01412538,186.08,186.04,20.0]
[1736572057081,2.50921873,186.13,186.06,20.0]
[1736572057285,9.01412538,186.12,186.06,20.0]
[1736572057488,9.01412538,186.13,186.08,20.0]
[1736572058681,9.01412538,186.12,186.08,20.0]
[1736572058979,9.01412538,186.11,186.08,20.0]
[1736572059281,9.01412538,186.12,186.08,20.0]
[1736572061362,9.01412538,186.09,186.06,20.0]
[1736572061690,9.01412538,186.07,186.0,223.4877]
[1736572061980,9.01412538,186.05,186.0,223.4877]
[1736572062179,9.01412538,186.06,186.03,20.0]
[1736572062589,1.00772268,186.11,186.03,20.0]
[1736572062791,9.01412538,186.07,186.03,20.0]
[1736572063293,9.01412538,186.07,186.0,253.4877]
[1736572063986,9.01412538,186.07,186.03,20.0]
[1736572067590,1.00768961,186.14,186.03,50.0]
[1736572067800,9.01412538,186.1,186.03,50.0]
[1736572067979,9.01412538,186.11,186.03,50.0]
[1736572068474,9.01412538,186.1,186.04,20.0]
[1736572069169,9.01412538,186.1,186.06,20.0]
[1736572070498,9.01412538,186.1,186.04,20.0]
[1736572070705,9.01412538,186.11,186.04,20.0]
[1736572071192,9.01412538,186.1,186.04,20.0]
[1736572074482,9.01412538,186.1,186.06,20.0]
[1736572079275,9.01412538,186.11,186.06,20.0]
[1736572081314,9.01412538,186.1,186.06,20.0]
[1736572084390,9.01412538,186.11,186.06,20.0]
[1736572091105,9.01412538,186.1,186.06,20.0]
[1736572093112,9.01412538,186.11,186.06,20.0]
[1736572093309,9.01412538,186.12,186.06,20.0]
[1736572094916,1.00753317,186.18,186.1,20.0]
[1736572095215,17.24537961,186.19,186.1,136.24732097]
[1736572095418,17.24537961,186.19,186.11,0.40705366]
[1736572096204,9.01412538,186.19,186.11,0.40705366]
[1736572096909,9.01412538,186.15,186.1,101.3]
[1736572098606,9.01412538,186.16,186.1,101.3]
[1736572098910,9.01412538,186.17,186.1,101.3]
[1736572099694,9.01412538,186.14,186.1,101.3]
[1736572099910,9.01412538,186.13,186.1,101.3]
[1736572100299,9.01412538,186.14,186.1,101.3]
[1736572102426,9.01412538,186.14,186.1,20.0]
[1736572108814,1.00736089,186.18,186.1,20.0]
[1736572108815,9.01412538,186.13,186.1,20.0]
[1736572109024,9.01412538,186.11,186.09,20.0]
[1736572109339,29.148284,186.17,186.09,20.0]
[1736572109637,9.01412538,186.12,186.09,20.0]
[1736572111934,9.01412538,186.1,186.09,20.0]
[1736572112639,9.01412538,186.1,186.06,20.0]
[1736572112815,9.01412538,186.09,186.06,20.0]
[1736572114033,1.00761042,186.13,186.06,20.0]
[1736572114242,9.01412538,186.1,186.06,20.0]
[1736572115740,9.01412538,186.11,186.06,20.0]
[1736572118435,9.01412538,186.12,186.06,20.0]
[1736572118643,9.01412538,186.13,186.06,20.0]
[1736572118955,1.00747495,186.14,186.06,20.0]
[1736572119138,9.01412538,186.13,186.06,20.0]
[1736572120934,9.01412538,186.12,186.06,20.0]
[1736572125459,9.01412538,186.13,186.06,20.0]
[1736572129435,9.01412538,186.12,186.06,20.0]
[1736572131454,1.00747495,186.14,186.06,20.0]
[1736572131653,9.01412538,186.13,186.06,20.0]
[1736572132534,1.00748579,186.16,186.08,20.0]
[1736572132734,9.01412538,186.13,186.08,20.0]
[1736572136478,1.00740716,186.17,186.08,20.0]
[1736572136637,9.01412538,186.13,186.08,20.0]
[1736572138257,9.01412538,186.12,186.08,20.0]
[1736572140265,83.0,186.18,186.08,20.0]
[1736572140266,9.01412538,186.1,186.08,20.0]
[1736572142468,9.01412538,186.11,186.08,20.0]
[1736572144183,9.01412538,186.1,186.08,20.0]
[1736572145241,1.5687,186.14,186.03,1.5024]
[1736572145446,1.00773252,186.13,186.03,1.5024]
[1736572145645,9.01412538,186.1,186.06,20.0]
[1736572145863,9.01412538,186.12,186.06,20.0]
[1736572146970,1.00753351,186.15,186.06,101.3]
[1736572147167,20.17085423,186.19,186.06,101.3]
[1736572147168,9.01412538,186.14,186.06,101.3]
[1736572147487,9.01412538,186.14,186.1,20.0]
[1736572148877,9.01412538,186.15,186.1,20.0]
[1736572152257,9.01412538,186.14,186.1,20.0]
[1736572153289,1.00738437,186.18,186.1,20.0]
[1736572153585,9.01412538,186.14,186.1,20.0]
[1736572161705,9.01412538,186.13,186.1,20.0]
[1736572164390,9.01412538,186.11,186.1,20.0]
[1736572164702,9.01412538,186.11,186.07,6.4952]
[1736572164884,9.01412538,186.1,186.07,6.4952]
[1736572165311,9.01412538,186.1,186.09,20.0]
[1736572165515,9.01412538,186.11,186.09,20.0]
[1736572168202,9.01412538,186.14,186.09,20.0]
[1736572169616,9.01412538,186.13,186.09,20.0]
[1736572170418,1.00738646,186.17,186.1,20.0]
[1736572170804,9.01412538,186.15,186.1,20.0]
[1736572172812,9.01412538,186.14,186.1,20.0]
[1736572182223,9.01412538,186.15,186.1,20.0]
[1736572182927,9.01412538,186.15,186.1,21.5285]
[1736572188130,9.01412538,186.14,186.1,21.5285]
[1736572188509,9.01412538,186.15,186.1,21.5285]
[1736572188830,1.00738646,186.17,186.11,20.0]
[1736572189016,9.01412538,186.17,186.13,20.0]
[1736572202656,1.00720159,186.2,186.17,20.0]
[1736572202856,8.23125423,186.23,186.17,20.0]
[1736572202857,1.00715392,186.22,186.17,20.0]
[1736572203057,9.01412538,186.2,186.17,20.0]
[1736572208758,9.01412538,186.18,186.17,20.0]
[1736572210357,9.01412538,186.18,186.11,81.3]
[1736572210659,9.01412538,186.14,186.1,7.7335]
[1736572211872,9.01412538,186.12,186.1,7.7335]
[1736572212162,9.01412538,186.12,186.07,85.84]
[1736572212557,9.01412538,186.12,186.1,20.0]
[1736572222874,9.01412538,186.11,186.07,81.3]
[1736572223060,9.01412538,186.1,186.09,20.0]
[1736572230884,9.01412538,186.1,186.05,137.1685]
[1736572231067,9.01412538,186.09,186.08,20.0]
[1736572232683,9.01412538,186.1,186.07,20.0]
[1736572233462,5.372,186.15,186.02,6.2701]
[1736572233783,9.01412538,186.09,186.05,20.0]
[1736572239697,36.05650152,186.12,186.05,20.0]
[1736572239995,9.01412538,186.08,186.05,20.0]
[1736572241471,9.01412538,186.09,186.05,20.0]
[1736572241994,9.01412538,186.1,186.05,20.0]
[1736572245996,1.00756973,186.13,186.05,20.0]
[1736572246199,5.3716,186.17,186.09,20.0]
[1736572246200,1.00744865,186.17,186.09,20.0]
[1736572246402,1.00732175,186.18,186.09,20.0]
[1736572246700,9.01412538,186.15,186.11,20.0]
[1736572253205,9.01412538,186.14,186.11,20.0]
[1736572253790,9.01412538,186.15,186.11,20.0]
[1736572254494,9.01412538,186.17,186.11,20.0]
[1736572257306,9.01412538,186.17,186.12,20.0]
[1736572258780,9.01412538,186.16,186.12,20.0]
[1736572258984,9.01412538,186.15,186.12,20.0]
[1736572260392,9.01412538,186.17,186.12,20.0]
[1736572260607,9.01412538,186.16,186.12,20.0]
[1736572261109,9.01412538,186.14,186.12,20.0]
[1736572261683,9.01412538,186.15,186.12,20.0]
[1736572262683,1.00725429,186.19,186.12,20.0]
[1736572262910,9.01412538,186.15,186.12,20.0]
[1736572264417,9.01412538,186.16,186.12,20.0]
[1736572265602,9.01412538,186.17,186.12,20.0]
[1736572266224,9.01412538,186.18,186.12,20.0]
[1736572267714,105.73411111,186.25,186.14,20.0]
[1736572267715,9.23839266,186.24,186.14,20.0]
[1736572267887,9.01412538,186.21,186.14,20.0]
[1736572269318,9.01412538,186.22,186.16,20.0]
[1736572269630,1.00697647,186.25,186.16,20.0]
[1736572269794,9.01412538,186.23,186.16,20.0]
[1736572270525,9.01412538,186.22,186.16,20.0]
[1736572271090,9.01412538,186.21,186.16,20.0]
[1736572271585,9.01412538,186.19,186.16,20.0]
[1736572273926,9.01412538,186.17,186.13,88.8812]
[1736572274304,9.01412538,186.17,186.13,7.5812]
[1736572276039,1.00721355,186.2,186.13,7.5812]
[1736572276331,9.01412538,186.18,186.13,7.5812]
[1736572280721,1.00713386,186.22,186.13,20.0]
[1736572280722,9.01412538,186.16,186.13,20.0]
[1736572288353,9.01412538,186.17,186.13,20.0]
[1736572290260,9.01412538,186.18,186.13,20.0]
[1736572293250,7.0203,186.24,186.14,20.0]
[1736572293555,9.01412538,186.22,186.14,20.0]
[1736572294363,13.59985423,186.27,186.14,238.515]
[1736572294561,9.01412538,186.23,186.18,20.0]
[1736572294767,9.01412538,186.22,186.18,20.0]
[1736572297362,9.01412538,186.21,186.18,20.0]
[1736572298736,9.01412538,186.2,186.18,20.0]
[1736572299867,9.01412538,186.19,186.14,82.915]
[1736572300085,9.01412538,186.18,186.14,1.615]
[1736572300370,9.01412538,186.18,186.14,21.615]
[1736572300872,9.01412538,186.18,186.14,20.0]
[1736572303144,9.01412538,186.19,186.14,20.0]
[1736572305186,1.00710927,186.24,186.14,20.0]
[1736572305354,9.01412538,186.19,186.15,20.0]
[1736572312066,9.01412538,186.2,186.15,20.0]
[1736572312790,9.01412538,186.21,186.16,20.0]
[1736572313161,1.00710927,186.24,186.16,20.0]
[1736572313470,9.01412538,186.21,186.16,20.0]
[1736572315388,1.00710927,186.24,186.16,20.0]
[1736572315565,9.01412538,186.2,186.16,20.0]
[1736572320583,1.00710927,186.24,186.16,20.0]
[1736572320788,9.01412538,186.19,186.16,20.0]
[1736572323769,9.01412538,186.18,186.16,20.0]
[1736572327299,1.00707465,186.22,186.16,20.0]
[1736572327502,9.01412538,186.19,186.16,20.0]
[1736572333104,1.00707465,186.22,186.16,20.0]
[1736572333276,9.01412538,186.19,186.16,20.0]
[1736572335309,9.01412538,186.2,186.16,20.0]
[1736572335598,9.01412538,186.21,186.16,26.2002]
[1736572336003,9.01412538,186.2,186.16,26.2002]
[1736572336393,1.00695666,186.25,186.16,26.2002]
[1736572336585,9.01412538,186.2,186.16,26.2002]
[1736572340608,9.01412538,186.21,186.16,26.2002]
[1736572341915,9.01412538,186.2,186.16,26.2002]
[1736572343894,9.01412538,186.21,186.16,26.2002]
[1736572344511,9.01412538,186.19,186.16,26.2002]
[1736572344714,9.01412538,186.18,186.11,87.3116]
[1736572344927,9.01412538,186.18,186.14,20.0]
[1736572347817,9.01412538,186.19,186.14,20.0]
[1736572348306,9.01412538,186.2,186.15,20.0]
[1736572350924,9.01412538,186.18,186.14,20.0]
[1736572364697,9.01412538,186.18,186.15,5.381]
[1736572364904,9.01412538,186.18,186.14,20.0]
[1736572366530,9.01412538,186.15,186.07,88.383687]
[1736572366700,9.01412538,186.11,186.07,88.383687]
[1736572367219,9.01412538,186.1,186.07,88.383687]
[1736572367611,9.01412538,186.1,186.09,20.0]
[1736572367815,9.01412538,186.1,186.07,88.383687]
[1736572368423,9.01412538,186.1,186.09,20.0]
[1736572368616,9.01412538,186.11,186.1,20.0]
[1736572373929,9.01412538,186.11,186.08,20.0]
[1736572374247,9.01412538,186.1,186.08,20.0]
[1736572374536,9.01412538,186.11,186.08,20.0]
[1736572374825,9.01412538,186.12,186.07,0.619887]
[1736572375016,9.01412538,186.12,186.07,20.619887]
[1736572377520,9.01412538,186.11,186.07,20.619887]
[1736572378707,9.01412538,186.12,186.07,20.619887]
[1736572381713,9.01412538,186.11,186.07,20.619887]
[1736572382914,9.01412538,186.12,186.07,20.619887]
[1736572385747,2.56935924,186.16,186.07,20.619887]
[1736572385921,9.01412538,186.14,186.07,20.619887]
[1736572386121,9.01412538,186.13,186.07,20.619887]
[1736572387346,1.00740981,186.17,186.09,20.0]
[1736572387541,9.01412538,186.15,186.09,20.0]
[1736572387847,9.01412538,186.15,186.11,20.0]
[1736572389849,9.01412538,186.14,186.11,20.0]
[1736572391253,9.01412538,186.13,186.11,20.0]
[1736572392949,9.01412538,186.12,186.07,0.619887]
[1736572393135,9.01412538,186.11,186.07,0.619887]
[1736572393451,9.01412538,186.11,186.09,20.0]
[1736572398854,8.23125423,186.21,186.14,20.0]
[1736572399045,8.23125423,186.21,186.15,20.0]
[1736572399255,9.01412538,186.2,186.15,20.0]
[1736572400445,9.01412538,186.19,186.15,20.0]
[1736572401565,1.0070074,186.22,186.15,20.0]
[1736572401863,9.01412538,186.19,186.15,20.0]
[1736572402042,1.00708203,186.24,186.15,20.0]
[1736572402228,9.01412538,186.2,186.15,20.0]
[1736572404038,9.01412538,186.2,186.16,20.0]
[1736572406459,9.01412538,186.19,186.16,20.0]
[1736572406672,9.01412538,186.17,186.16,20.0]
[1736572406834,9.01412538,186.17,186.12,1.5665]
[1736572407032,9.01412538,186.14,186.1,10.7698]
[1736572407331,9.01412538,186.14,186.13,20.0]
[1736572407656,1.00712145,186.2,186.13,20.0]
[1736572408171,9.01412538,186.15,186.13,20.0]
[1736572412267,9.01412538,186.14,186.1,6.2298]
[1736572412476,9.01412538,186.12,186.07,83.569787]
[1736572412976,9.01412538,186.12,186.1,20.0]
[1736572415151,9.01412538,186.11,186.1,20.0]
[1736572417167,9.01412538,186.11,186.08,20.0]
[1736572418367,9.01412538,186.11,186.08,19.58]
[1736572422043,9.01412538,186.12,186.08,19.58]
[1736572424873,9.01412538,186.11,186.08,19.58]
[1736572426267,9.01412538,186.11,186.08,20.0]
[1736572428281,9.01412538,186.12,186.08,20.0]
[1736572430583,9.01412538,186.11,186.08,20.0]
[1736572431985,1.00749585,186.17,186.08,20.0]
[1736572432182,9.01412538,186.11,186.08,20.0]
[1736572434591,9.01412538,186.1,186.08,20.0]
[1736572439490,9.01412538,186.11,186.08,20.0]
[1736572447091,9.01412538,186.11,186.07,0.619887]
[1736572447293,9.01412538,186.11,186.08,20.0]
[1736572447869,9.01412538,186.12,186.08,20.0]
[1736572451811,1.00749585,186.17,186.1,20.0]
[1736572451973,84.5844,186.18,186.1,20.0]
[1736572452287,9.01412538,186.15,186.1,20.0]
[1736572453466,84.5844,186.18,186.1,20.0]
[1736572453671,83.0,186.18,186.1,20.0]
[1736572453891,9.01412538,186.16,186.1,20.0]
[1736572454197,9.01412538,186.15,186.1,20.0]
[1736572455003,9.01412538,186.15,186.12,20.0]
[1736572457003,9.01412538,186.14,186.12,20.0]
[1736572457179,9.01412538,186.13,186.12,20.0]
[1736572457380,9.01412538,186.13,186.09,81.3]
[1736572457597,9.01412538,186.1,186.07,0.619887]
[1736572458180,9.01412538,186.1,186.08,20.0]
[1736572459378,9.01412538,186.1,186.07,0.619887]
[1736572460399,9.01412538,186.09,186.08,20.0]
[1736572465515,1.00754324,186.16,186.08,20.0]
[1736572465816,9.01412538,186.1,186.08,20.0]
[1736572468228,9.01412538,186.09,186.07,0.619887]
[1736572468388,9.01412538,186.08,186.06,20.0]
[1736572468586,9.01412538,186.07,186.06,20.0]
[1736572474422,9.01412538,186.08,186.06,20.0]
[1736572477029,9.01412538,186.08,186.03,81.3]
[1736572477206,9.01412538,186.08,186.06,20.0]
[1736572500852,1.00761488,186.12,186.06,20.0]
[1736572501051,9.01412538,186.08,186.06,20.0]
[1736572503654,83.0,186.14,186.06,20.0]
[1736572503849,9.01412538,186.12,186.06,20.0]
[1736572504459,9.01412538,186.11,186.06,20.0]
[1736572506764,9.01412538,186.1,186.06,20.0]
[1736572508037,9.01412538,186.1,186.07,20.0]
[1736572510233,9.01412538,186.08,186.07,20.0]
[1736572515459,9.01412538,186.08,186.04,81.3]
[1736572515662,9.01412538,186.05,186.04,81.3]
[1736572515840,9.01412538,186.05,185.97,265.3]
[1736572516145,1.00800273,186.04,186.0,20.0]
[1736572516343,1.00800869,186.08,186.0,20.0]
[1736572516842,1.00800869,186.08,185.97,129.7]
[1736572516843,9.01412538,186.01,185.97,48.4]
[1736572517036,89.6025,186.07,185.97,48.4]
[1736572517037,9.01412538,185.98,185.97,48.4]
[1736572517232,9.01412538,185.98,185.92,8.93164821]
[1736572517470,9.01412538,185.94,185.92,8.93164821]
[1736572518378,9.01412538,185.94,185.93,20.0]
[1736572519764,9.01412538,185.94,185.92,0.62038713]
[1736572520068,9.01412538,185.93,185.92,0.62038713]
[1736572520565,9.01412538,185.93,185.87,12.5235]
[1736572520783,9.01412538,185.91,185.9,20.0]
[1736572521273,9.01412538,185.93,185.9,20.0]
[1736572521583,9.01412538,185.95,185.91,20.0]
[1736572521968,9.01412538,185.94,185.91,20.0]
[1736572523052,9.01412538,185.92,185.89,0.40943472]
[1736572523270,9.01412538,185.9,185.87,6.4364]
[1736572523466,9.01412538,185.9,185.89,20.0]
[1736572523667,9.01412538,185.9,185.85,4.54]
[1736572523868,9.01412538,185.88,185.85,4.54]
[1736572524068,9.01412538,185.88,185.87,20.0]
[1736572525874,9.01412538,185.88,185.84,48.42]
[1736572526181,1.00863662,185.93,185.84,48.42]
[1736572526182,9.01412538,185.85,185.84,48.42]
[1736572532490,9.01412538,185.86,185.84,48.42]
[1736572532687,1.00863662,185.93,185.84,48.42]
[1736572532897,9.01412538,185.87,185.86,20.0]
[1736572533596,1.6312,185.96,185.87,20.0]
[1736572533891,1.00847705,185.98,185.88,20.0]
[1736572534195,1.00847705,185.98,185.89,20.0]
[1736572534497,9.01412538,185.94,185.89,20.0]
[1736572535280,9.01412538,185.93,185.89,20.0]